[Event "SRB-chT 1st League Men 2018"]
[Site "Valjevo"]
[Date "2018.09.02"]
[Round "3"]
[White "Ilincic, Zlatko"]
[Black "Sedlak, Nikola"]
[Result "0-1"]
[ECO "D02"]
[WhiteElo "2429"]
[BlackElo "2587"]
[Annotator "ChessBase"]
[PlyCount "72"]
[EventDate "2018.08.31"]
[EventType "team-tourn"]
[EventCountry "SRB"]
[SourceTitle "playchess.com"]
[Source "ChessBase"]
[SourceQuality "1"]
[TimeControl "40/5400+30:1800+30"]

1. d4 {[%emt 0:00:00]} Nf6 {[%emt 1:30:30]} 2. c4 e6 3. g3 Bb4+ 4. Bd2 Be7 5. Bg2 d5 6. Nf3 Ne4 7. O-O c6 8. Qc2 f5 9. Bf4 Nd7 10. Ne1 g5 11. Bc1 Bf6 12. f3 Nd6 13. cxd5 cxd5 14. Qd3 Nb8 15. Nc3 b6 16. Nc2 Ba6 17. Qd1 Nc6 18. Re1 O-O 19. e4 dxe4 20. fxe4 Nxe4 21. Nxe4 fxe4 22. Rxe4 Bc4 23. Qg4 Kh8 24. Be3 Rc8 25. Rd1 Bxa2 26. Rxe6 Bxe6 27. Qxe6 Na5 28. Be4 Nc4 29. Bf2 Bg7 30. Qh3 h6 31. d5 Nd6 32. Bd3 Rc7 33. Nd4 Rxf2 34. Ne6 Qf6 35. Nxc7 Qf3 36. Re1 Rf1+ 0-1

[Event "SRB-chT 1st League Men 2018"]
[Site "Valjevo"]
[Date "2018.09.02"]
[Round "3"]
[White "Simonovic, Aleksandar"]
[Black "Maksimovic, Branimir"]
[Result "1/2-1/2"]
[ECO "B07"]
[WhiteElo "2363"]
[BlackElo "2306"]
[Annotator "NA"]
[PlyCount "72"]
[EventDate "2018.08.31"]
[EventType "team-tourn"]
[EventCountry "SRB"]
[SourceTitle "playchess.com"]
[Source "ChessBase"]
[SourceQuality "1"]
[TimeControl "40/5400+30:1800+30"]

1. e4 {[%emt 1:30:30]} d6 {[%emt 1:30:30]} 2. d4 {[%emt 0:00:30]} Nf6 {[%emt 0:00:30]} 3. Nc3 {[%emt 0:00:30]} e5 {[%emt 0:00:30]} 4. dxe5 {[%emt 0:00:30]} dxe5 {[%emt 0:00:30]} 5. Qxd8+ {[%emt 0:00:30]} Kxd8 {[%emt 0:00:30]} 6. Bc4 {[%emt 0:00:30]} Ke8 {[%emt 0:00:30] B07: Pirc Defence: Miscellaneous Systems} 7. f3 {[%emt 0:00:30]} (7. f4 Bb4 8. Bd3 Nc6 9. Nf3 Bg4 10. fxe5 Nd7 11. Bf4 Bxf3 12. gxf3 Ncxe5 13. Be2 f6 14. Bd2 {½-½ (56) Sarana,A (2587)-Khismatullin,D (2632) Sochi 2018}) 7... c6 {[%emt 0:00:30]} 8. Nge2 {[%emt 0:00:30]} Nbd7 {[%emt 0:00:30]} 9. a4 {[%emt 0:00:30]} a5 {[%emt 0:00:30]} 10. Bd2 {[%emt 0:00:30]} Bb4 {[%emt 0:00:30]} 11. Nc1 $146 {[%emt 0:00:30]} ({Predecessor:} 11. Nb1 Nb6 12. Bb3 Nfd7 13. c3 Bd6 14. Bc2 {0-1 (56) Zelbel,P (2345)-Henrichs,T (2490) Vlissingen 2010}) 11... Nc5 {[%emt 0:00:30]} 12. b3 {[%emt 0:00:30]} Ne6 {[%emt 0:00:30]} 13. Bxe6 {[%emt 0:00:30]} Bxe6 {[%emt 0:00:30]} 14. Nd3 {[%emt 0:00:30]} Nd7 {[%emt 0:00:00]} 15. Nxb4 {[%emt 0:00:00]} axb4 {[%emt 0:00:00]} 16. Nd1 {[%emt 0:01:00]} c5 {[%emt 0:01:30]} 17. Nb2 {[%emt 0:00:30]} Ke7 {[%emt 0:00:30]} 18. Ke2 {[%emt 0:00:00]} f6 {[%emt 0:00:00]} 19. Nd3 {[%emt 0:01:00]} b6 {[%emt 0:01:00]} 20. Rhb1 {[%emt 0:00:30]} Rhc8 {[%emt 0:00:30]} 21. Be3 {[%emt 0:00:30]} Ra5 {[%emt 0:00:30]} 22. Bd2 {[%emt 0:00:30]} Ra6 {[%emt 0:00:30]} 23. Kd1 {[%emt 0:00:00]} Nb8 {[%emt 0:00:30]} 24. Kc1 {[%emt 0:01:00]} Nc6 {[%emt 0:00:30]} 25. Kb2 {[%emt 0:00:30]} Na5 {[%emt 0:00:30]} 26. f4 {[%emt 0:00:30]} exf4 {[%emt 0:00:30]} 27. Nxf4 {[%emt 0:00:30]} Ra7 {[%emt 0:00:30]} 28. Re1 {[%emt 0:00:30]} Rd7 {[%emt 0:00:30]} 29. Be3 {[%emt 0:00:30]} Rc6 {[%emt 0:00:30]} 30. Rad1 {[%emt 0:00:30]} Rcd6 {[%emt 0:00:30]} 31. Kc1 {[%emt 0:00:30]} g5 {[%emt 0:00:30]} 32. Rxd6 {[%emt 0:00:30]} Rxd6 $11 {[%emt 0:00:30]} 33. Nh5 {[%emt 0:00:30]} Bg4 {[%emt 0:00:30]} 34. e5 {[%emt 0:00:30]} fxe5 {[%emt 0:00:30]} 35. Bxg5+ {[%emt 0:00:30]} Kf7 {[%emt 0:00:30]} 36. Ng3 {[%emt 0:00:30]} Nc6 {[%emt 0:00:30]} 1/2-1/2

[Event "SRB-chT 1st League Men 2018"]
[Site "Valjevo"]
[Date "2018.09.03"]
[Round "4"]
[White "Radlovacki, Jovan"]
[Black "Omorjan, Dejan"]
[Result "1-0"]
[ECO "B53"]
[WhiteElo "2312"]
[BlackElo "2260"]
[Annotator "NA"]
[PlyCount "79"]
[EventDate "2018.08.31"]
[EventType "team-tourn"]
[EventCountry "SRB"]
[SourceTitle "playchess.com"]
[Source "ChessBase"]
[SourceQuality "1"]
[TimeControl "40/5400+30:1800+30"]

1. e4 {[%emt 1:30:30]} c5 {[%emt 1:30:30]} 2. Nf3 {[%emt 0:00:30]} d6 {[%emt 0:00:30]} 3. d4 {[%emt 0:00:30]} cxd4 {[%emt 0:00:30]} 4. Qxd4 {[%emt 0:00:30]} a6 {[%emt 0:00:30]} 5. c4 {[%emt 0:00:30]} Nc6 {[%emt 0:00:30]} 6. Qe3 {[%emt 0:00:30]} g6 {[%emt 0:00:30] B53: Sicilian: 2...d6: Lines with Qxd4} (6... Bg4 7. Nd4 g6 8. Nc3 Bg7 9. Nxc6 bxc6 10. h3 Be6 11. Be2 Nf6 12. O-O O-O 13. f4 Qa5 14. Bd2 {1-0 (50) Karjakin,S (2763)-Nepomniachtchi,I (2751) Moscow 2018}) 7. h3 {[%emt 0:00:30] LiveBook: 117 Partien} Bg7 {[%emt 0:00:30]} 8. Be2 {[%emt 0:00:30]} Nf6 {[%emt 0:00:30]} 9. O-O {[%emt 0:00:30]} O-O {[%emt 0:00:30]} 10. Nc3 {[%emt 0:00:30]} Be6 {[%emt 0:00:30]} 11. Rb1 {[%emt 0:00:30]} Nd7 {[%emt 0:00:30]} 12. b3 {[%emt 0:00:30]} Nde5 {[%emt 0:00:30]} 13. Ng5 $146 {[%emt 0:00:30]} Bd7 {[%emt 0:00:30]} 14. Rd1 {[%emt 0:00:30]} h6 {[%emt 0:00:30]} 15. Nf3 {[%emt 0:00:30]} f5 {[%emt 0:00:30]} 16. c5 {[%emt 0:00:30]} f4 {[%emt 0:00:30]} 17. Qd2 {[%emt 0:00:30]} Nxf3+ {[%emt 0:00:30]} 18. Bxf3 {[%emt 0:00:30]} Nd4 {[%emt 0:00:30]} 19. Ba3 {[%emt 0:00:30]} e5 {[%emt 0:00:30]} 20. Qd3 $17 {[%emt 0:00:30]} Qa5 {[%emt 0:00:30]} 21. Qc4+ {[%emt 0:00:30]} Be6 {[%emt 0:00:30]} 22. Bb4 {[%emt 0:00:30]} Qd8 {[%emt 0:00:30]} 23. Qd3 {[%emt 0:00:30]} Qg5 {[%emt 0:00:30]} 24. Kf1 {[%emt 0:00:30]} dxc5 {[%emt 0:00:30]} 25. Bxc5 {[%emt 0:00:30]} Rfd8 {[%emt 0:00:30]} 26. Nd5 {[%emt 0:00:30]} Bxd5 {[%emt 0:00:30]} 27. exd5 {[%emt 0:00:30]} Rac8 {[%emt 0:00:30]} 28. Bxd4 {[%emt 0:00:30]} exd4 {[%emt 0:00:30]} 29. Rbc1 {[%emt 0:00:30]} Rc3 {[%emt 0:00:30]} 30. Qe4 {[%emt 0:00:30]} Qf6 {[%emt 0:00:30]} 31. Rc2 {[%emt 0:00:30]} Qd6 {[%emt 0:00:30]} 32. Re2 {[%emt 0:00:30]} Rc7 {[%emt 0:00:30]} 33. Rde1 {[%emt 0:00:30]} Kh7 {[%emt 0:00:30]} 34. Qb1 {[%emt 0:00:30]} Rdc8 {[%emt 0:00:30]} 35. Re6 {[%emt 0:00:30]} Qb4 {[%emt 0:00:30]} 36. Qxg6+ {[%emt 0:00:30]} Kh8 {[%emt 0:00:30]} 37. Re8+ {[%emt 0:00:30]} Bf8 {[%emt 0:00:30]} 38. Qxh6+ {[%emt 0:00:30]} Rh7 {[%emt 0:00:30]} 39. Qf6+ {[%emt 0:00:30]} Rg7 {[%emt 0:00:30]} 40. Rxc8 {[%emt 0:00:30]} 1-0

[Event "SRB-chT 1st League Men 2018"]
[Site "Valjevo"]
[Date "2018.09.03"]
[Round "4"]
[White "Zegarac, Vuk"]
[Black "Simonovic, Aleksandar"]
[Result "*"]
[ECO "B22"]
[WhiteElo "2282"]
[BlackElo "2363"]
[Annotator "NA"]
[PlyCount "35"]
[EventDate "2018.08.31"]
[EventType "team-tourn"]
[EventCountry "SRB"]
[SourceTitle "playchess.com"]
[Source "ChessBase"]
[SourceQuality "1"]
[TimeControl "40/5400+30:1800+30"]

1. d4 {[%emt 1:30:30]} e6 {[%emt 0:00:00]} 2. Nf3 {[%emt 0:00:00]} c5 {[%emt 0:01:19]} 3. c3 {[%emt 0:03:19]} Nc6 {[%emt 0:05:30]} 4. e4 {[%emt 0:06:16]} d5 {[%emt 0:00:50]} 5. exd5 {[%emt 1:22:55]} exd5 {[%emt 0:03:27]} 6. Be2 {[%emt 1:22:28]} cxd4 {[%emt 0:17:13]} 7. Nxd4 {[%emt 0:01:28]} Bd6 {[%emt 0:00:32]} 8. O-O {[%emt 0:01:58]} h6 {[%emt 0:10:20]} 9. Nxc6 {[%emt 0:10:58]} bxc6 {[%emt 0:00:07]} 10. c4 {[%emt 0:00:50]} Ne7 {[%emt 0:04:13]} 11. cxd5 {[%emt 0:00:35]} cxd5 {[%emt 0:01:00]} 12. Bf4 {[%emt 0:05:57]} O-O {[%emt 0:02:09]} 13. Bxd6 {[%emt 0:00:29]} Qxd6 {[%emt 0:00:06]} 14. Nc3 {[%emt 0:00:39]} Rd8 {[%emt 0:02:06]} 15. Nb5 $11 {[%emt 0:04:50]} Qb6 {[%emt 0:08:03]} 16. Qd4 {[%emt 0:02:06]} Rb8 {[%emt 0:09:53]} 17. Qxb6 {[%emt 0:55:58]} Rxb6 {[%emt 0:31:42]} 18. Nxa7 {[%emt 0:00:30]} *

[Event "SRB-chT 1st League Men 2018"]
[Site "Valjevo"]
[Date "2018.09.07"]
[Round "8"]
[White "Bozic, Milan"]
[Black "Radovic, Janko"]
[Result "*"]
[ECO "D37"]
[WhiteElo "2334"]
[BlackElo "2405"]
[Annotator "ChessBase"]
[PlyCount "89"]
[EventDate "2018.08.31"]
[EventType "team-tourn"]
[EventCountry "SRB"]
[SourceTitle "playchess.com"]
[Source "ChessBase"]
[SourceQuality "1"]
[TimeControl "40/5400+30:1800+30"]

1. d4 {[%emt 0:00:00]} Nf6 {[%emt 0:00:00]} 2. Nf3 {[%emt 0:00:58]} e6 {[%emt 0:00:00]} 3. c4 {[%emt 0:00:13]} Be7 {[%emt 0:00:23]} 4. Nc3 {[%emt 0:00:59]} d5 {[%emt 0:00:10]} 5. Qc2 {[%emt 0:03:46]} O-O {[%emt 0:04:43]} 6. cxd5 {[%emt 0:01:54]} exd5 {[%emt 0:00:13]} 7. Bf4 {[%emt 0:00:31]} c5 {[%emt 0:10:31]} 8. e3 {[%emt 0:05:25]} Nc6 {[%emt 0:00:41]} 9. h3 {[%emt 0:04:10]} cxd4 {[%emt 0:06:11]} 10. Nxd4 {[%emt 0:05:37]} Nxd4 {[%emt 0:08:37]} 11. exd4 {[%emt 0:02:24]} Bd6 {[%emt 0:00:14]} 12. Bxd6 {[%emt 0:01:02]} Qxd6 {[%emt 0:00:02]} 13. Be2 {[%emt 0:00:15]} Ne4 {[%emt 0:11:08]} 14. O-O {[%emt 0:07:06]} Nxc3 {[%emt 0:01:09]} 15. Qxc3 {[%emt 0:00:49]} Be6 {[%emt 0:00:20]} 16. Rac1 {[%emt 0:02:47]} Rac8 {[%emt 0:04:02]} 17. Qd2 {[%emt 0:00:28]} h6 {[%emt 0:02:34]} 18. Bf3 {[%emt 0:08:29]} b6 {[%emt 0:02:02]} 19. a3 {[%emt 0:04:06]} Rxc1 {[%emt 0:05:12]} 20. Rxc1 {[%emt 0:00:51]} Rc8 {[%emt 0:00:01]} 21. b4 {[%emt 0:01:17]} Rc6 {[%emt 0:02:02]} 22. h4 {[%emt 0:07:49]} Rc4 {[%emt 0:08:15]} 23. Be2 {[%emt 0:03:43]} Rxc1+ {[%emt 0:01:54]} 24. Qxc1 {[%emt 0:00:10]} a5 {[%emt 0:02:00]} 25. bxa5 {[%emt 0:03:52]} bxa5 {[%emt 0:00:12]} 26. Qc3 {[%emt 0:00:07]} Qb6 {[%emt 0:09:38]} 27. Bd3 {[%emt 0:03:07]} Bd7 {[%emt 0:02:31]} 28. g3 {[%emt 0:03:06]} Bg4 {[%emt 0:03:01]} 29. f3 {[%emt 0:01:20]} Bd7 {[%emt 0:01:21]} 30. Kf2 {[%emt 0:00:13]} g6 {[%emt 0:01:15]} 31. Ke3 {[%emt 0:04:01]} Qe6+ {[%emt 0:02:24]} 32. Kd2 {[%emt 0:01:54]} Qb6 {[%emt 0:00:18]} 33. f4 {[%emt 0:06:05]} Kg7 {[%emt 0:01:41]} 34. Bc2 {[%emt 0:02:20]} Bg4 {[%emt 0:12:15]} 35. Kc1 {[%emt 0:04:33]} Qe6 {[%emt 0:03:04]} 36. Bb3 {[%emt 0:06:36]} Bf5 {[%emt 0:01:33]} 37. Kd2 {[%emt 0:01:09]} Qe4 {[%emt 0:01:29]} 38. Qe3 {[%emt 0:02:37]} Qg2+ {[%emt 0:04:34]} 39. Ke1 {[%emt 0:01:51]} Be4 {[%emt 0:00:16]} 40. Qf2 {[%emt 0:00:00]} Qh1+ {[%emt 0:00:00]} 41. Qf1 {[%emt 0:02:30]} Qh2 {[%emt 0:01:21]} 42. Qf2 {[%emt 0:00:26]} Qh3 {[%emt 0:00:22]} 43. Bd1 {[%emt 0:03:37]} h5 {[%emt 0:02:58]} 44. Kd2 {[%emt 0:07:10]} Qe6 {[%emt 0:32:13]} 45. Qe3 {[%emt 0:21:07]} *

[Event "SRB-chT 1st League Men 2018"]
[Site "Valjevo"]
[Date "2018.09.07"]
[Round "8"]
[White "Maksimovic, Branimir"]
[Black "Radlovacki, Jovan"]
[Result "1/2-1/2"]
[ECO "D02"]
[WhiteElo "2306"]
[BlackElo "2312"]
[Annotator "NA"]
[PlyCount "115"]
[EventDate "2018.08.31"]
[EventType "team-tourn"]
[EventCountry "SRB"]
[SourceTitle "playchess.com"]
[Source "ChessBase"]
[SourceQuality "1"]
[TimeControl "40/5400+30:1800+30"]

1. Nf3 {[%emt 0:01:51]} Nf6 {[%emt 0:00:00]} 2. d4 {[%emt 0:00:16]} e6 {[%emt 0:00:00]} 3. Bf4 {[%emt 0:00:35]} b6 {[%emt 0:00:15]} 4. e3 {[%emt 0:00:20]} Be7 {[%emt 0:01:11]} 5. h3 {[%emt 0:00:06]} Bb7 {[%emt 0:00:33]} 6. Nbd2 {[%emt 0:00:11]} O-O {[%emt 0:05:46]} 7. Bd3 {[%emt 0:00:20] LiveBook: 168 Games} d5 {[%emt 0:01:24]} 8. O-O {[%emt 0:00:46]} c5 {[%emt 0:00:35]} 9. c3 {[%emt 0:00:22]} Nc6 {[%emt 0:06:09]} 10. Qb1 {[%emt 0:02:24] D02: 1 d4 d5 2 Nf3 sidelines, including 2...Nf6 3 g3 and 2...Nf6 3 Bf4} (10. Re1 Bd6 11. Bxd6 Qxd6 12. e4 dxe4 13. Nxe4 Nxe4 14. Bxe4 Rad8 15. dxc5 Qxc5 16. Qe2 Rd6 17. Rad1 Rfd8 18. Rxd6 Rxd6 {½-½ (30) Safarli,E (2633)-Salgado Lopez,I (2627) Linares 2017}) 10... Bd6 {[%emt 0:02:25]} 11. Ne5 {[%emt 0:01:53]} Qc7 {[%emt 0:00:19]} 12. Ndf3 {[%emt 0:09:26]} Nd8 $146 {[%emt 0:25:33]} ({Predecessor:} 12... Ne7 13. a4 h6 14. Bh2 Ne4 15. Qd1 f6 16. Ng4 Bxh2+ 17. Ngxh2 cxd4 18. exd4 {0-1 (51) Yuksel,M (2052)-Sharif,M (2462) Kamena Vourla 2012}) 13. Ng5 {[%emt 0:08:05]} h6 {[%emt 0:02:17]} 14. Nh7 {[%emt 0:16:45]} Nxh7 {[%emt 0:01:35]} 15. Bxh7+ {[%emt 0:00:03]} Kh8 {[%emt 0:00:09]} 16. Bd3 {[%emt 0:14:39]} Nc6 {[%emt 0:02:15]} 17. Nxc6 {[%emt 0:00:04]} Bxf4 {[%emt 0:00:07]} 18. exf4 {[%emt 0:00:33]} Qxc6 {[%emt 0:02:22]} 19. Qd1 {[%emt 0:04:06]} Qd6 {[%emt 0:01:11]} 20. Qd2 {[%emt 0:00:03]} Bc6 {[%emt 0:05:57]} 21. Rfe1 {[%emt 0:00:15]} Bd7 {[%emt 0:00:38]} 22. Re5 {[%emt 0:00:55]} Rae8 {[%emt 0:04:04]} 23. Rae1 {[%emt 0:00:12]} cxd4 {[%emt 0:03:52]} 24. cxd4 {[%emt 0:00:05]} Rc8 {[%emt 0:01:32]} 25. a3 {[%emt 0:00:24]} f6 {[%emt 0:12:03]} 26. R5e2 {[%emt 0:00:22]} f5 {[%emt 0:00:25]} 27. g3 {[%emt 0:03:30]} Rf6 {[%emt 0:03:11]} 28. Qb4 {[%emt 0:01:26]} Qxb4 {[%emt 0:02:25]} 29. axb4 {[%emt 0:00:13]} Rff8 {[%emt 0:02:44]} 30. Ra1 {[%emt 0:00:23]} Rc7 {[%emt 0:00:16]} 31. h4 {[%emt 0:00:32]} Kg8 {[%emt 0:14:17]} 32. Ree1 {[%emt 0:34:55]} Kf7 {[%emt 0:00:30]} 33. b5 {[%emt 0:00:30]} Rfc8 {[%emt 0:00:30]} 34. Kf1 {[%emt 0:00:30]} Kf6 {[%emt 0:00:30]} 35. Ke2 {[%emt 0:00:30]} Be8 {[%emt 0:00:30]} 36. Kd2 {[%emt 0:00:30]} Bh5 {[%emt 0:00:30]} 37. Re3 {[%emt 0:00:30]} Rd8 {[%emt 0:00:30]} 38. f3 {[%emt 0:00:30]} Rg8 {[%emt 0:00:30]} 39. Be2 {[%emt 0:00:30]} Rgc8 {[%emt 0:00:30]} 40. Rc3 {[%emt 0:00:30]} Rxc3 {[%emt 0:00:30]} 41. bxc3 {[%emt 0:30:30]} Rc7 {[%emt 0:30:30]} 42. g4 {[%emt 0:00:30]} Bg6 {[%emt 0:00:30]} 43. h5 {[%emt 0:00:30]} Bf7 {[%emt 0:00:30]} 44. Bd3 {[%emt 0:00:30]} g6 {[%emt 0:00:30]} 45. hxg6 {[%emt 0:00:30]} Bxg6 {[%emt 0:00:30]} 46. Rh1 {[%emt 0:00:30]} Rh7 {[%emt 0:00:30]} 47. c4 {[%emt 0:00:30]} dxc4 {[%emt 0:00:30]} 48. Bxc4 {[%emt 0:00:30]} Rd7 {[%emt 0:00:30]} 49. Kc3 {[%emt 0:00:30]} Rh7 {[%emt 0:00:30]} 50. Rxh6 $1 {[%emt 0:00:30]} Rxh6 {[%emt 0:00:30]} 51. g5+ {[%emt 0:00:30]} Ke7 {[%emt 0:00:30]} 52. gxh6 $18 {[%emt 0:00:30]} Kd6 {[%emt 0:00:30]} 53. Kd2 {[%emt 0:00:30]} Bh7 {[%emt 0:00:30]} 54. Ke3 {[%emt 0:00:30]} Bg6 {[%emt 0:00:30]} 55. Kf2 {[%emt 0:00:30]} Ke7 {[%emt 0:00:30]} 56. Kg3 {[%emt 0:00:30]} Kf6 {[%emt 0:00:30]} 57. Kh4 {[%emt 0:00:30]} Bh7 {[%emt 0:00:30]} 58. Kh5 {[%emt 0:00:30]} 1/2-1/2

[Event "SRB-chT 1st League Men 2018"]
[Site "Valjevo"]
[Date "2018.09.10"]
[Round "11"]
[White "Laketic, Gojko"]
[Black "Krstic, Petar"]
[Result "1-0"]
[ECO "E21"]
[WhiteElo "2335"]
[BlackElo "2323"]
[Annotator "NA"]
[PlyCount "73"]
[EventDate "2018.08.31"]
[EventType "team-tourn"]
[EventCountry "SRB"]
[SourceTitle "playchess.com"]
[Source "ChessBase"]
[SourceQuality "1"]
[TimeControl "40/5400+30:1800+30"]

1. d4 {[%emt 0:00:48]} Nf6 {[%emt 0:00:00]} 2. c4 {[%emt 0:00:15]} e6 {[%emt 0:00:00]} 3. Nc3 {[%emt 0:00:23]} Bb4 {[%emt 0:00:36]} 4. Bd2 {[%emt 0:00:14]} b6 {[%emt 0:01:05]} 5. Nf3 {[%emt 0:12:39]} O-O {[%emt 0:02:21]} 6. Rc1 {[%emt 0:09:20] E21: Nimzo-Indian: 4 Nf3} Bb7 {[%emt 0:08:30]} (6... c5 7. dxc5 Bxc5 8. g3 Bb7 9. Bg2 Ne4 10. O-O Nxd2 11. Qxd2 Qe7 12. a3 a5 13. Rfd1 Rd8 {1-0 (50) Mamedyarov,S (2747)-Adams,M (2744) Wijk aan Zee 2016 CBM 171 [Krasenkow,M]}) 7. g3 {[%emt 0:02:22]} Bxf3 {[%emt 0:11:02]} 8. exf3 {[%emt 0:00:15]} d5 $146 {[%emt 0:00:31]} ({Predecessor:} 8... d6 9. Bg2 Nbd7 10. O-O c6 {½-½ (10) Buesdorf,K (1880)-Tochtermann,G (1940) Bad Woerishofen 1996}) 9. a3 {[%emt 0:05:27]} Be7 {[%emt 0:03:57]} (9... Bxc3 $5 10. bxc3 Nc6 $11) 10. cxd5 {[%emt 0:19:44]} exd5 {[%emt 0:07:20]} 11. Na4 {[%emt 0:01:20]} Re8 {[%emt 0:08:24]} 12. Be2 {[%emt 0:06:36]} c6 {[%emt 0:05:03]} 13. O-O {[%emt 0:00:14]} Nfd7 {[%emt 0:00:35]} 14. Be3 {[%emt 0:04:16]} a5 {[%emt 0:05:10]} 15. Nc3 {[%emt 0:08:47]} Bd6 {[%emt 0:06:28]} 16. Qc2 {[%emt 0:02:54]} Ra7 {[%emt 0:01:40]} 17. Rfd1 {[%emt 0:00:12]} g6 {[%emt 0:05:09]} 18. Bf1 {[%emt 0:00:34]} Nf8 {[%emt 0:03:18]} 19. f4 {[%emt 0:06:36]} Ne6 {[%emt 0:04:36]} 20. f5 {[%emt 0:03:25]} Ng7 {[%emt 0:00:04]} 21. fxg6 {[%emt 0:01:09]} fxg6 {[%emt 0:00:14]} 22. Bh3 {[%emt 0:00:54]} Rf7 {[%emt 0:00:51]} 23. Qd2 {[%emt 0:04:16]} Ne6 {[%emt 0:04:59]} 24. Re1 {[%emt 0:00:55]} Bf8 {[%emt 0:01:51]} 25. Ne2 {[%emt 0:01:35]} Bg7 {[%emt 0:03:14]} 26. Bg2 {[%emt 0:01:13]} Qf6 {[%emt 0:02:16]} 27. Nf4 {[%emt 0:02:07]} Ref8 {[%emt 0:07:20]} 28. Nxe6 {[%emt 0:01:11]} Qxe6 {[%emt 0:00:17]} 29. Bf4 {[%emt 0:01:39]} Qd7 {[%emt 0:02:35]} 30. Re2 {[%emt 0:00:57]} Rxf4 {[%emt 0:03:21]} 31. gxf4 {[%emt 0:00:04]} Bh6 {[%emt 0:01:19]} 32. Rce1 $16 {[%emt 0:00:26]} Qg4 {[%emt 0:00:43]} 33. Re8 {[%emt 0:00:50]} Nd7 {[%emt 0:00:56]} 34. Qe2 {[%emt 0:00:41]} Qxf4 {[%emt 0:00:35]} 35. Qe6+ {[%emt 0:00:19]} Qf7 {[%emt 0:00:05]} 36. Rxf8+ {[%emt 0:00:44]} Bxf8 {[%emt 0:00:15]} 37. Qxc6 {[%emt 0:00:37]} 1-0